[Event "Titled Tuesday Blitz July 25 Early 2023"]
[White "Svane, Frederik"]
[Black "Vakhlamov, Igor L."]
[WhiteFideId "12923044"]
[BlackFideId "24126748"]
[WhiteElo "2928"]
[BlackElo "2773"]
[Result "1-0"]
[Round "7"]
[TimeControl "180+2"]
[Date "2023.07.25"]
[WhiteClock "0:00:02"]
[BlackClock "0:00:00"]
[Board "23"]

1. c4 {[%clk 0:03:00]}  e6 {[%clk 0:02:57]} 2. Nc3 {[%clk 0:03:00]}  d5 {[%clk 0:02:56]} 3. d4 {[%clk 0:03:01]}  c5 {[%clk 0:02:55]} 4. e3 {[%clk 0:02:56]}  Nf6 {[%clk 0:02:55]} 5. Nf3 {[%clk 0:02:56]}  Nc6 {[%clk 0:02:55]} 6. cxd5 {[%clk 0:02:57]}  exd5 {[%clk 0:02:55]} 7. Bb5 {[%clk 0:02:57]}  cxd4 {[%clk 0:02:54]} 8. exd4 {[%clk 0:02:57]}  Bd7 {[%clk 0:02:54]} 9. O-O {[%clk 0:02:56]}  Be7 {[%clk 0:02:55]} 10. Bg5 {[%clk 0:02:56]}  O-O {[%clk 0:02:39]} 11. Bxf6 {[%clk 0:02:46]}  Bxf6 {[%clk 0:02:40]} 12. Nxd5 {[%clk 0:02:47]}  Bg4 {[%clk 0:02:40]} 13. Bxc6 {[%clk 0:02:23]}  bxc6 {[%clk 0:02:39]} 14. Nxf6+ {[%clk 0:02:20]}  Qxf6 {[%clk 0:02:40]} 15. h3 {[%clk 0:02:20]}  Bxf3 {[%clk 0:02:34]} 16. Qxf3 {[%clk 0:02:21]}  Qxd4 {[%clk 0:02:33]} 17. b3 {[%clk 0:02:21]}  Rac8 {[%clk 0:02:27]} 18. Rae1 {[%clk 0:02:15]}  Rc7 {[%clk 0:02:19]} 19. Re4 {[%clk 0:02:15]}  Qd5 {[%clk 0:02:05]} 20. Rd1 {[%clk 0:02:13]}  Qa5 {[%clk 0:02:00]} 21. Ra4 {[%clk 0:02:14]}  Qe5 {[%clk 0:01:59]} 22. Qe4 {[%clk 0:02:07]}  Qf6 {[%clk 0:01:50]} 23. Qd4 {[%clk 0:02:05]}  Qxd4 {[%clk 0:01:41]} 24. Rdxd4 {[%clk 0:02:05]}  Re8 {[%clk 0:01:41]} 25. Kf1 {[%clk 0:02:03]}  Kf8 {[%clk 0:01:39]} 26. g3 {[%clk 0:02:03]}  g6 {[%clk 0:01:38]} 27. Ra6 {[%clk 0:02:03]}  h5 {[%clk 0:01:37]} 28. Rc4 {[%clk 0:02:01]}  Re6 {[%clk 0:01:33]} 29. Rca4 {[%clk 0:01:49]}  Ree7 {[%clk 0:01:33]} 30. Rb4 {[%clk 0:01:42]}  Red7 {[%clk 0:01:25]} 31. Re4 {[%clk 0:01:29]}  Rd2 {[%clk 0:01:16]} 32. Kg2 {[%clk 0:01:21]}  c5 {[%clk 0:01:01]} 33. Rea4 {[%clk 0:01:18]}  Rdd7 {[%clk 0:00:52]} 34. h4 {[%clk 0:01:17]}  Ke7 {[%clk 0:00:52]} 35. Kf3 {[%clk 0:01:17]}  Kd8 {[%clk 0:00:46]} 36. Kf4 {[%clk 0:01:14]}  Kc8 {[%clk 0:00:36]} 37. Ke5 {[%clk 0:01:10]}  Kb8 {[%clk 0:00:34]} 38. Rd6 {[%clk 0:01:03]}  Re7+ {[%clk 0:00:34]} 39. Kf4 {[%clk 0:00:50]}  Re2 {[%clk 0:00:34]} 40. Kf3 {[%clk 0:00:50]}  Rc2 {[%clk 0:00:32]} 41. Rf6 {[%clk 0:00:45]}  Kb7 {[%clk 0:00:27]} 42. g4 {[%clk 0:00:40]}  hxg4+ {[%clk 0:00:27]} 43. Kxg4 {[%clk 0:00:40]}  Kc8 {[%clk 0:00:23]} 44. Kg5 {[%clk 0:00:20]}  Kd8 {[%clk 0:00:22]} 45. Kh6 {[%clk 0:00:21]}  c4 {[%clk 0:00:16]} 46. bxc4 {[%clk 0:00:20]}  R2xc4 {[%clk 0:00:17]} 47. Rxc4 {[%clk 0:00:18]}  Rxc4 {[%clk 0:00:18]} 48. f4 {[%clk 0:00:16]}  Ke7 {[%clk 0:00:16]} 49. Kg7 {[%clk 0:00:16]}  Ra4 {[%clk 0:00:11]} 50. Rxf7+ {[%clk 0:00:16]}  Ke6 {[%clk 0:00:11]} 51. Rf6+ {[%clk 0:00:12]}  Ke7 {[%clk 0:00:10]} 52. Kxg6 {[%clk 0:00:02]}  Rxa2 {[%clk 0:00:10]} 53. h5 {[%clk 0:00:02]}  Rg2+ {[%clk 0:00:08]} 54. Kf5 {[%clk 0:00:02]}  Rh2 {[%clk 0:00:09]} 55. Kg6 {[%clk 0:00:01]}  Rxh5 {[%clk 0:00:06]} 56. Rf7+ {[%clk 0:00:01]}  Ke8 {[%clk 0:00:06]} 57. Rxa7 {[%clk 0:00:02]}  Rb5 {[%clk 0:00:03]} 58. f5 {[%clk 0:00:02]}  Rb6+ {[%clk 0:00:02]} 59. f6 {[%clk 0:00:02]}  Rb8 {[%clk 0:00:00]} 60. Rh7 {[%clk 0:00:02]} 1-0


[Site "https://www.chess.com"]

[Event "Titled Tuesday Blitz July 25 Early 2023"]
[White "Madaminov, Mukhiddin"]
[Black "Wagner, Dennis"]
[WhiteFideId "14210703"]
[BlackFideId "24650684"]
[WhiteElo "2922"]
[BlackElo "2767"]
[Result "0-1"]
[Round "7"]
[TimeControl "180+2"]
[Date "2023.07.25"]
[WhiteClock "0:00:18"]
[BlackClock "0:00:03"]
[Board "24"]

1. e4 {[%clk 0:03:00]}  e5 {[%clk 0:02:59]} 2. Nf3 {[%clk 0:02:58]}  Nc6 {[%clk 0:03:00]} 3. Bb5 {[%clk 0:02:58]}  a6 {[%clk 0:03:00]} 4. Ba4 {[%clk 0:02:59]}  Nf6 {[%clk 0:03:00]} 5. O-O {[%clk 0:02:59]}  Be7 {[%clk 0:02:54]} 6. Re1 {[%clk 0:02:57]}  b5 {[%clk 0:02:54]} 7. Bb3 {[%clk 0:02:57]}  O-O {[%clk 0:02:54]} 8. c3 {[%clk 0:02:57]}  d5 {[%clk 0:02:53]} 9. exd5 {[%clk 0:02:58]}  Nxd5 {[%clk 0:02:54]} 10. Nxe5 {[%clk 0:02:58]}  Nxe5 {[%clk 0:02:55]} 11. Rxe5 {[%clk 0:02:59]}  c6 {[%clk 0:02:56]} 12. d4 {[%clk 0:02:43]}  Bd6 {[%clk 0:02:56]} 13. Re1 {[%clk 0:02:43]}  Qh4 {[%clk 0:02:56]} 14. g3 {[%clk 0:02:44]}  Qh3 {[%clk 0:02:57]} 15. Re4 {[%clk 0:02:45]}  g5 {[%clk 0:02:57]} 16. Qf1 {[%clk 0:02:43]}  Qh5 {[%clk 0:02:50]} 17. Qe2 {[%clk 0:02:27]}  Qg6 {[%clk 0:02:47]} 18. h4 {[%clk 0:01:45]}  f5 {[%clk 0:02:40]} 19. h5 {[%clk 0:01:41]}  Qf7 {[%clk 0:02:17]} 20. Re5 {[%clk 0:01:38]}  Bxe5 {[%clk 0:02:11]} 21. dxe5 {[%clk 0:01:38]}  f4 {[%clk 0:02:09]} 22. g4 {[%clk 0:01:34]}  Qe6 {[%clk 0:01:29]} 23. f3 {[%clk 0:01:03]}  Re8 {[%clk 0:01:30]} 24. Nd2 {[%clk 0:00:58]}  Qxe5 {[%clk 0:01:28]} 25. Ne4 {[%clk 0:00:58]}  Bxg4 {[%clk 0:01:21]} 26. Qg2 {[%clk 0:00:45]}  Bxf3 {[%clk 0:01:15]} 27. Qxg5+ {[%clk 0:00:45]}  Kh8 {[%clk 0:00:50]} 28. Bxd5 {[%clk 0:00:44]}  Rg8 {[%clk 0:00:38]} 29. Bxg8 {[%clk 0:00:44]}  Rxg8 {[%clk 0:00:39]} 30. Kf2 {[%clk 0:00:42]}  Rxg5 {[%clk 0:00:30]} 31. Kxf3 {[%clk 0:00:42]}  Rg1 {[%clk 0:00:21]} 32. Kf2 {[%clk 0:00:28]}  Qxe4 {[%clk 0:00:12]} 33. Kxg1 {[%clk 0:00:28]}  Qe1+ {[%clk 0:00:08]} 34. Kg2 {[%clk 0:00:25]}  Qe2+ {[%clk 0:00:09]} 35. Kh3 {[%clk 0:00:23]}  Qxh5+ {[%clk 0:00:08]} 36. Kg2 {[%clk 0:00:24]}  Qe2+ {[%clk 0:00:09]} 37. Kh3 {[%clk 0:00:24]}  Qf3+ {[%clk 0:00:09]} 38. Kh4 {[%clk 0:00:23]}  Kg7 {[%clk 0:00:06]} 39. Kg5 {[%clk 0:00:23]}  Qg3+ {[%clk 0:00:04]} 40. Kf5 {[%clk 0:00:23]}  Kf7 {[%clk 0:00:03]} 41. Bxf4 {[%clk 0:00:19]}  Qg6+ {[%clk 0:00:03]} 42. Ke5 {[%clk 0:00:20]}  Qe6+ {[%clk 0:00:02]} 43. Kd4 {[%clk 0:00:21]}  Qd5+ {[%clk 0:00:02]} 44. Ke3 {[%clk 0:00:21]}  Qe6+ {[%clk 0:00:03]} 45. Kf3 {[%clk 0:00:21]}  Qf5 {[%clk 0:00:03]} 46. Re1 {[%clk 0:00:19]}  h5 {[%clk 0:00:03]} 47. Re5 {[%clk 0:00:18]}  Qg4+ {[%clk 0:00:03]} 48. Ke4 {[%clk 0:00:19]}  h4 {[%clk 0:00:04]} 49. Rg5 {[%clk 0:00:17]}  Qe2+ {[%clk 0:00:03]} 50. Kf5 {[%clk 0:00:18]}  Qe6# {[%clk 0:00:03]} 0-1


[Site "https://www.chess.com"]

[Event "Titled Tuesday Blitz July 25 Early 2023"]
[White "Grandelius, Nils"]
[Black "Morefield, Jason"]
[WhiteFideId "1710400"]
[BlackFideId "30920825"]
[WhiteElo "2873"]
[BlackElo "2746"]
[Result "1-0"]
[Round "7"]
[TimeControl "180+2"]
[Date "2023.07.25"]
[WhiteClock "0:00:08"]
[BlackClock "0:00:00"]
[Board "25"]

1. d4 {[%clk 0:03:00]}  Nf6 {[%clk 0:02:53]} 2. Nf3 {[%clk 0:03:01]}  d5 {[%clk 0:02:53]} 3. c3 {[%clk 0:03:01]}  e6 {[%clk 0:02:50]} 4. Bg5 {[%clk 0:03:01]}  Be7 {[%clk 0:02:49]} 5. Nbd2 {[%clk 0:03:01]}  O-O {[%clk 0:02:49]} 6. e3 {[%clk 0:03:02]}  Nbd7 {[%clk 0:02:49]} 7. Bd3 {[%clk 0:03:01]}  b6 {[%clk 0:02:49]} 8. Qa4 {[%clk 0:02:57]}  Bb7 {[%clk 0:02:46]} 9. Ne5 {[%clk 0:02:57]}  h6 {[%clk 0:02:39]} 10. Bf4 {[%clk 0:02:52]}  Nxe5 {[%clk 0:02:36]} 11. Bxe5 {[%clk 0:02:49]}  Nd7 {[%clk 0:02:31]} 12. Bg3 {[%clk 0:02:49]}  a6 {[%clk 0:02:30]} 13. O-O {[%clk 0:02:48]}  c5 {[%clk 0:02:29]} 14. Rad1 {[%clk 0:02:37]}  b5 {[%clk 0:02:15]} 15. Qc2 {[%clk 0:02:37]}  Rc8 {[%clk 0:02:14]} 16. Qb1 {[%clk 0:02:35]}  Qb6 {[%clk 0:02:11]} 17. a3 {[%clk 0:02:24]}  cxd4 {[%clk 0:02:04]} 18. cxd4 {[%clk 0:02:12]}  Rc6 {[%clk 0:01:57]} 19. b4 {[%clk 0:02:04]}  Rfc8 {[%clk 0:01:47]} 20. Nb3 {[%clk 0:02:03]}  Rc3 {[%clk 0:01:29]} 21. Nc5 {[%clk 0:01:58]}  Nxc5 {[%clk 0:01:28]} 22. dxc5 {[%clk 0:01:50]}  Qd8 {[%clk 0:01:27]} 23. Be5 {[%clk 0:01:23]}  Rxa3 {[%clk 0:01:26]} 24. Qb2 {[%clk 0:01:23]}  Rxd3 {[%clk 0:01:13]} 25. Rxd3 {[%clk 0:01:24]}  f6 {[%clk 0:01:13]} 26. Bc3 {[%clk 0:01:19]}  Qe8 {[%clk 0:01:10]} 27. Rd2 {[%clk 0:01:11]}  Qg6 {[%clk 0:01:00]} 28. Qb1 {[%clk 0:01:10]}  Qg5 {[%clk 0:00:52]} 29. f4 {[%clk 0:00:59]}  Qg4 {[%clk 0:00:52]} 30. h3 {[%clk 0:00:56]}  Qh5 {[%clk 0:00:43]} 31. Qa2 {[%clk 0:00:52]}  Kh8 {[%clk 0:00:36]} 32. Ba1 {[%clk 0:00:42]}  e5 {[%clk 0:00:22]} 33. fxe5 {[%clk 0:00:38]}  fxe5 {[%clk 0:00:23]} 34. Rxd5 {[%clk 0:00:37]}  Bxd5 {[%clk 0:00:23]} 35. Qxd5 {[%clk 0:00:38]}  Bf6 {[%clk 0:00:20]} 36. Qb7 {[%clk 0:00:30]}  Qe8 {[%clk 0:00:18]} 37. Qxa6 {[%clk 0:00:28]}  Qd7 {[%clk 0:00:15]} 38. Rxf6 {[%clk 0:00:23]}  gxf6 {[%clk 0:00:15]} 39. Qxf6+ {[%clk 0:00:24]}  Kh7 {[%clk 0:00:11]} 40. Bxe5 {[%clk 0:00:23]}  Re8 {[%clk 0:00:09]} 41. c6 {[%clk 0:00:21]}  Qd1+ {[%clk 0:00:05]} 42. Kh2 {[%clk 0:00:21]}  Qh5 {[%clk 0:00:04]} 43. c7 {[%clk 0:00:19]}  Qg6 {[%clk 0:00:03]} 44. Qf4 {[%clk 0:00:13]}  Qe6 {[%clk 0:00:03]} 45. Qe4+ {[%clk 0:00:12]}  Qg6 {[%clk 0:00:00]} 46. Qb7 {[%clk 0:00:08]} 1-0


[Site "https://www.chess.com"]

[Event "Titled Tuesday Blitz July 25 Early 2023"]
[White "Xu, Yi"]
[Black "Becerra Rivero, Julio"]
[WhiteFideId "8605564"]
[BlackFideId "3501728"]
[WhiteElo "2742"]
[BlackElo "2872"]
[Result "0-1"]
[Round "7"]
[TimeControl "180+2"]
[Date "2023.07.25"]
[WhiteClock "0:00:13"]
[BlackClock "0:00:17"]
[Board "26"]

1. e4 {[%clk 0:02:57]}  c5 {[%clk 0:02:58]} 2. Nf3 {[%clk 0:02:57]}  Nc6 {[%clk 0:02:57]} 3. Bb5 {[%clk 0:02:57]}  g6 {[%clk 0:02:57]} 4. O-O {[%clk 0:02:56]}  Bg7 {[%clk 0:02:57]} 5. c3 {[%clk 0:02:57]}  Nf6 {[%clk 0:02:53]} 6. Re1 {[%clk 0:02:57]}  O-O {[%clk 0:02:52]} 7. d4 {[%clk 0:02:55]}  cxd4 {[%clk 0:02:49]} 8. cxd4 {[%clk 0:02:56]}  d5 {[%clk 0:02:49]} 9. e5 {[%clk 0:02:55]}  Ne4 {[%clk 0:02:49]} 10. Bxc6 {[%clk 0:02:55]}  bxc6 {[%clk 0:02:48]} 11. Be3 {[%clk 0:02:55]}  f6 {[%clk 0:02:42]} 12. exf6 {[%clk 0:02:44]}  exf6 {[%clk 0:02:42]} 13. Qc1 {[%clk 0:02:44]}  Bg4 {[%clk 0:02:20]} 14. Nbd2 {[%clk 0:02:39]}  Rc8 {[%clk 0:02:09]} 15. h3 {[%clk 0:02:36]}  Be6 {[%clk 0:02:05]} 16. Nb3 {[%clk 0:02:32]}  f5 {[%clk 0:02:01]} 17. Bf4 {[%clk 0:02:27]}  Re8 {[%clk 0:01:48]} 18. Be5 {[%clk 0:02:26]}  Bf8 {[%clk 0:01:45]} 19. Nc5 {[%clk 0:02:20]}  Bf7 {[%clk 0:01:41]} 20. b4 {[%clk 0:02:16]}  h6 {[%clk 0:01:35]} 21. Qa3 {[%clk 0:01:58]}  a5 {[%clk 0:01:22]} 22. bxa5 {[%clk 0:01:28]}  Ra8 {[%clk 0:01:21]} 23. a6 {[%clk 0:01:23]}  g5 {[%clk 0:01:21]} 24. Bh2 {[%clk 0:01:10]}  f4 {[%clk 0:01:19]} 25. Rac1 {[%clk 0:01:05]}  Qb6 {[%clk 0:01:09]} 26. Qb3 {[%clk 0:00:40]}  Qxb3 {[%clk 0:00:46]} 27. axb3 {[%clk 0:00:38]}  Nxc5 {[%clk 0:00:43]} 28. dxc5 {[%clk 0:00:38]}  Rxa6 {[%clk 0:00:42]} 29. Rxe8 {[%clk 0:00:31]}  Bxe8 {[%clk 0:00:42]} 30. Nd4 {[%clk 0:00:29]}  Kf7 {[%clk 0:00:34]} 31. f3 {[%clk 0:00:29]}  Bg7 {[%clk 0:00:33]} 32. Ne2 {[%clk 0:00:27]}  Ra2 {[%clk 0:00:30]} 33. Kf1 {[%clk 0:00:26]}  Bd7 {[%clk 0:00:27]} 34. Bg1 {[%clk 0:00:26]}  Bc8 {[%clk 0:00:27]} 35. Nd4 {[%clk 0:00:11]}  Ba6+ {[%clk 0:00:26]} 36. Ke1 {[%clk 0:00:11]}  Rxg2 {[%clk 0:00:26]} 37. Bf2 {[%clk 0:00:11]}  Rxf2 {[%clk 0:00:26]} 38. Kxf2 {[%clk 0:00:11]}  Bxd4+ {[%clk 0:00:26]} 39. Kg2 {[%clk 0:00:12]}  Bb5 {[%clk 0:00:24]} 40. b4 {[%clk 0:00:12]}  Be3 {[%clk 0:00:23]} 41. Ra1 {[%clk 0:00:12]}  d4 {[%clk 0:00:20]} 42. Ra7+ {[%clk 0:00:13]}  Ke6 {[%clk 0:00:20]} 43. Rh7 {[%clk 0:00:13]}  d3 {[%clk 0:00:19]} 44. Rxh6+ {[%clk 0:00:14]}  Kd5 {[%clk 0:00:19]} 45. Rd6+ {[%clk 0:00:15]}  Kc4 {[%clk 0:00:19]} 46. h4 {[%clk 0:00:16]}  gxh4 {[%clk 0:00:19]} 47. Kh3 {[%clk 0:00:16]}  Kxb4 {[%clk 0:00:17]} 48. Kxh4 {[%clk 0:00:13]}  Kxc5 {[%clk 0:00:17]} 0-1


[Site "https://www.chess.com"]

[Event "Titled Tuesday Blitz July 25 Early 2023"]
[White "Leon Oquendo, Jorge"]
[Black "Salinas Herrera, Pablo"]
[WhiteFideId "3514803"]
[BlackFideId "3407128"]
[WhiteElo "2719"]
[BlackElo "2849"]
[Result "1-0"]
[Round "7"]
[TimeControl "180+2"]
[Date "2023.07.25"]
[WhiteClock "0:00:09"]
[BlackClock "0:00:08"]
[Board "28"]

1. d4 {[%clk 0:03:00]}  d5 {[%clk 0:02:59]} 2. c4 {[%clk 0:03:00]}  e6 {[%clk 0:03:00]} 3. Nc3 {[%clk 0:03:00]}  Nf6 {[%clk 0:03:01]} 4. Bg5 {[%clk 0:03:00]}  Nbd7 {[%clk 0:02:58]} 5. e3 {[%clk 0:03:00]}  c6 {[%clk 0:02:59]} 6. Nf3 {[%clk 0:03:00]}  Qa5 {[%clk 0:02:59]} 7. Qc2 {[%clk 0:02:55]}  Ne4 {[%clk 0:02:56]} 8. Bf4 {[%clk 0:02:53]}  Bb4 {[%clk 0:02:53]} 9. Rc1 {[%clk 0:02:54]}  O-O {[%clk 0:02:51]} 10. Bd3 {[%clk 0:02:53]}  Ndf6 {[%clk 0:02:47]} 11. O-O {[%clk 0:02:53]}  Nxc3 {[%clk 0:02:43]} 12. bxc3 {[%clk 0:02:52]}  Ba3 {[%clk 0:02:43]} 13. Rb1 {[%clk 0:02:47]}  dxc4 {[%clk 0:02:39]} 14. Bxc4 {[%clk 0:02:45]}  Nd5 {[%clk 0:02:39]} 15. Bg3 {[%clk 0:02:24]}  Nxc3 {[%clk 0:02:34]} 16. Rb3 {[%clk 0:02:23]}  Nd5 {[%clk 0:02:34]} 17. e4 {[%clk 0:02:22]}  Nb6 {[%clk 0:02:23]} 18. Bd3 {[%clk 0:02:22]}  Be7 {[%clk 0:02:22]} 19. e5 {[%clk 0:02:20]}  h6 {[%clk 0:02:22]} 20. Qe2 {[%clk 0:02:11]}  Qd5 {[%clk 0:02:10]} 21. Bb1 {[%clk 0:01:57]}  Rd8 {[%clk 0:01:58]} 22. Bf4 {[%clk 0:01:55]}  Bf8 {[%clk 0:01:54]} 23. h4 {[%clk 0:01:52]}  Bd7 {[%clk 0:01:45]} 24. h5 {[%clk 0:01:47]}  Be8 {[%clk 0:01:17]} 25. Qc2 {[%clk 0:01:15]}  g6 {[%clk 0:01:16]} 26. hxg6 {[%clk 0:01:11]}  fxg6 {[%clk 0:01:17]} 27. Nh4 {[%clk 0:01:11]}  Rd7 {[%clk 0:01:17]} 28. Nxg6 {[%clk 0:01:10]}  Rg7 {[%clk 0:00:27]} 29. Rg3 {[%clk 0:01:06]}  Bxg6 {[%clk 0:00:25]} 30. Rxg6 {[%clk 0:01:05]}  Qxd4 {[%clk 0:00:23]} 31. Rxg7+ {[%clk 0:01:01]}  Bxg7 {[%clk 0:00:23]} 32. Qh7+ {[%clk 0:00:58]}  Kf8 {[%clk 0:00:24]} 33. Bxh6 {[%clk 0:00:58]}  Qxe5 {[%clk 0:00:21]} 34. Bg6 {[%clk 0:00:35]}  Qf6 {[%clk 0:00:18]} 35. Re1 {[%clk 0:00:16]}  Bxh6 {[%clk 0:00:13]} 36. Qxh6+ {[%clk 0:00:16]}  Qg7 {[%clk 0:00:13]} 37. Qg5 {[%clk 0:00:13]}  Qe7 {[%clk 0:00:10]} 38. Qh6+ {[%clk 0:00:11]}  Qg7 {[%clk 0:00:10]} 39. Qf4+ {[%clk 0:00:08]}  Kg8 {[%clk 0:00:06]} 40. Rxe6 {[%clk 0:00:08]}  Rf8 {[%clk 0:00:06]} 41. Qg4 {[%clk 0:00:07]}  Nd5 {[%clk 0:00:04]} 42. g3 {[%clk 0:00:04]}  Nf6 {[%clk 0:00:04]} 43. Qg5 {[%clk 0:00:04]}  Nd5 {[%clk 0:00:03]} 44. Re4 {[%clk 0:00:03]}  Qa1+ {[%clk 0:00:03]} 45. Kg2 {[%clk 0:00:04]}  Qg7 {[%clk 0:00:03]} 46. Rg4 {[%clk 0:00:03]}  Nf6 {[%clk 0:00:04]} 47. Rh4 {[%clk 0:00:04]}  Nd5 {[%clk 0:00:03]} 48. Bh7+ {[%clk 0:00:04]}  Kh8 {[%clk 0:00:03]} 49. Be4+ {[%clk 0:00:03]}  Kg8 {[%clk 0:00:04]} 50. Bxd5+ {[%clk 0:00:04]}  cxd5 {[%clk 0:00:04]} 51. Qxd5+ {[%clk 0:00:04]}  Rf7 {[%clk 0:00:05]} 52. Qd8+ {[%clk 0:00:04]}  Rf8 {[%clk 0:00:05]} 53. Qd5+ {[%clk 0:00:04]}  Rf7 {[%clk 0:00:06]} 54. Qe4 {[%clk 0:00:04]}  Qf6 {[%clk 0:00:06]} 55. Rg4+ {[%clk 0:00:04]}  Kf8 {[%clk 0:00:07]} 56. Rf4 {[%clk 0:00:05]}  Qg7 {[%clk 0:00:06]} 57. Qxb7 {[%clk 0:00:03]}  Rxf4 {[%clk 0:00:05]} 58. Qxg7+ {[%clk 0:00:03]}  Kxg7 {[%clk 0:00:06]} 59. gxf4 {[%clk 0:00:04]}  Kf6 {[%clk 0:00:06]} 60. Kf3 {[%clk 0:00:05]}  Kf5 {[%clk 0:00:07]} 61. Ke3 {[%clk 0:00:05]}  Ke6 {[%clk 0:00:08]} 62. Ke4 {[%clk 0:00:06]}  Kf6 {[%clk 0:00:08]} 63. a4 {[%clk 0:00:06]}  Kf7 {[%clk 0:00:09]} 64. a5 {[%clk 0:00:06]}  Kf6 {[%clk 0:00:10]} 65. a6 {[%clk 0:00:06]}  Ke6 {[%clk 0:00:11]} 66. f5+ {[%clk 0:00:07]}  Kf6 {[%clk 0:00:11]} 67. Kf4 {[%clk 0:00:07]}  Ke7 {[%clk 0:00:12]} 68. Ke5 {[%clk 0:00:08]}  Kd7 {[%clk 0:00:12]} 69. f6 {[%clk 0:00:08]}  Ke8 {[%clk 0:00:12]} 70. Ke6 {[%clk 0:00:09]}  Kd8 {[%clk 0:00:12]} 71. Kd6 {[%clk 0:00:09]}  Ke8 {[%clk 0:00:08]} 72. Kc6 {[%clk 0:00:09]} 1-0


[Site "https://www.chess.com"]

[Event "Titled Tuesday Blitz July 25 Early 2023"]
[White "Antal, Gergely"]
[Black "Cordova, Emilio"]
[WhiteFideId "717312"]
[BlackFideId "3801497"]
[WhiteElo "2690"]
[BlackElo "2838"]
[Result "0-1"]
[Round "7"]
[TimeControl "180+2"]
[Date "2023.07.25"]
[WhiteClock "0:00:07"]
[BlackClock "0:00:28"]
[Board "29"]

1. Nc3 {[%clk 0:03:00]}  c5 {[%clk 0:02:56]} 2. e4 {[%clk 0:02:59]}  b6 {[%clk 0:02:56]} 3. a4 {[%clk 0:02:59]}  Bb7 {[%clk 0:02:56]} 4. Nf3 {[%clk 0:02:58]}  e6 {[%clk 0:02:56]} 5. d4 {[%clk 0:02:58]}  cxd4 {[%clk 0:02:57]} 6. Nxd4 {[%clk 0:02:58]}  a6 {[%clk 0:02:58]} 7. Bd3 {[%clk 0:02:57]}  Bc5 {[%clk 0:02:56]} 8. Nb3 {[%clk 0:02:57]}  Be7 {[%clk 0:02:56]} 9. O-O {[%clk 0:02:57]}  Qc7 {[%clk 0:02:49]} 10. Qg4 {[%clk 0:02:51]}  Nf6 {[%clk 0:02:49]} 11. Qxg7 {[%clk 0:02:43]}  Rg8 {[%clk 0:02:47]} 12. Qh6 {[%clk 0:02:44]}  Nc6 {[%clk 0:02:44]} 13. Bf4 {[%clk 0:02:33]}  Ne5 {[%clk 0:02:42]} 14. Bg3 {[%clk 0:01:53]}  Nfg4 {[%clk 0:02:37]} 15. Qxh7 {[%clk 0:01:23]}  O-O-O {[%clk 0:02:34]} 16. h3 {[%clk 0:01:23]}  Nf3+ {[%clk 0:02:05]} 17. gxf3 {[%clk 0:01:17]}  Nxf2 {[%clk 0:02:03]} 18. Kxf2 {[%clk 0:00:51]}  Qxg3+ {[%clk 0:02:02]} 19. Ke2 {[%clk 0:00:52]}  Bh4 {[%clk 0:02:01]} 20. Nd1 {[%clk 0:00:22]}  Rh8 {[%clk 0:01:56]} 21. Qxf7 {[%clk 0:00:20]}  Rdf8 {[%clk 0:01:54]} 22. Qxf8+ {[%clk 0:00:11]}  Rxf8 {[%clk 0:01:54]} 23. Nd2 {[%clk 0:00:12]}  Qxh3 {[%clk 0:01:40]} 24. Nf2 {[%clk 0:00:11]}  Qg2 {[%clk 0:01:39]} 25. b4 {[%clk 0:00:09]}  Kb8 {[%clk 0:01:39]} 26. a5 {[%clk 0:00:06]}  b5 {[%clk 0:01:38]} 27. c4 {[%clk 0:00:07]}  bxc4 {[%clk 0:01:28]} 28. Bxc4 {[%clk 0:00:08]}  d5 {[%clk 0:01:28]} 29. Bd3 {[%clk 0:00:07]}  Rd8 {[%clk 0:01:23]} 30. b5 {[%clk 0:00:04]}  dxe4 {[%clk 0:01:23]} 31. Nxe4 {[%clk 0:00:04]}  Bxe4 {[%clk 0:01:10]} 32. Bxe4 {[%clk 0:00:04]}  axb5 {[%clk 0:01:10]} 33. a6 {[%clk 0:00:05]}  Ka7 {[%clk 0:01:11]} 34. Rac1 {[%clk 0:00:05]}  Qg7 {[%clk 0:00:58]} 35. Rc6 {[%clk 0:00:05]}  Qb2+ {[%clk 0:00:57]} 36. Rc2 {[%clk 0:00:04]}  Qe5 {[%clk 0:00:56]} 37. Nd3 {[%clk 0:00:05]}  Qh2+ {[%clk 0:00:53]} 38. Nf2 {[%clk 0:00:05]}  b4 {[%clk 0:00:49]} 39. Rb2 {[%clk 0:00:05]}  Bxf2 {[%clk 0:00:35]} 40. Rxf2 {[%clk 0:00:06]}  Qd6 {[%clk 0:00:34]} 41. Kf1 {[%clk 0:00:05]}  Qd1+ {[%clk 0:00:34]} 42. Kg2 {[%clk 0:00:06]}  Rg8+ {[%clk 0:00:33]} 43. Kh2 {[%clk 0:00:06]}  Qg1+ {[%clk 0:00:30]} 44. Kh3 {[%clk 0:00:07]}  Qg3# {[%clk 0:00:28]} 0-1


[Site "https://www.chess.com"]